Cogmind - Beta 11.1 @@@ ROGUE MODE // 2022.11.05 @ 08:43:43 Player: Beepinex Result: Self-destructed Performance ------------- Evolutions (1) 500 Regions Visited (4) 800 Robots Destroyed (24) 120 Value Destroyed (260) 260 Prototype IDs (5) 100 Alien Tech Used (0) 0 Bonus (150) 150 TOTAL SCORE: 1930 Bonus ------- High Alert Combat Kills 16 Follower Combat Kills 170 Friendly Fire -36 Cogmind --------- Core Integrity 390/400 Matter 300/300 Energy 160/160 System Corruption 1% Temperature Cool (0) Movement Flying (107) Ox1 Location -9/Mines Parts ------- > --- POWER (1) -------- Light Nuclear Core > --- PROPULSION (2) --- Improved Flight Unit Improved Flight Unit > --- UTILITY (4) ------ Improved Heat Sink Small Storage Unit Seismic Detector ECM Suite > --- WEAPON (2) ------- Beamcaster > --- INVENTORY (8) ---- Ion Engine Improved Flight Unit Improved Flight Unit Medium Battery (150) Large Matter Pod (150) Light Armor Plating EM Pulse Gun Rocket Launcher Peak State ------------ > --- POWER ------------ Light Nuclear Core > --- PROPULSION ------- Improved Flight Unit Improved Flight Unit > --- UTILITY ---------- Improved Heat Sink Small Storage Unit Seismic Detector Light Armor Plating > --- WEAPON ----------- Beamcaster > --- INVENTORY -------- Ion Engine Improved Flight Unit Medium Battery Large Matter Pod EM Pulse Gun Improved Assault Rifle Grenade Launcher Rocket Launcher [Rating: 21] Favorites ----------- Power Light Nuclear Core Engine Ion Engine Power Core Light Nuclear Core Propulsion Aluminum Leg Leg Aluminum Leg Flight Unit Improved Flight Unit Utility Small Storage Unit Device Seismic Detector Storage Small Storage Unit Protection Light Armor Plating Weapon Beamcaster Energy Gun Beamcaster Ballistic Gun Light Assault Rifle Launcher Grenade Launcher Build | -11 -10 -10 -9 -9 ------- Run | Scr Mat Min Mat Min Slots Evolved 2 | . . . 2 . Power . | . . . . . Propulsion . | . . . . . Utility 2 | . . . 2 . Weapon . | . . . . . Parts Attached 19 | 7 1 4 7 . Power 2 | 1 . 1 . . Engine 1 | 1 . . . . Core 1 | . . 1 . . Reactor . | . . . . . Propulsion 4 | 2 . . 2 . Treads . | . . . . . Leg 2 | 2 . . . . Wheel . | . . . . . Hover . | . . . . . Flight 2 | . . . 2 . Utility 8 | 2 . 2 4 . Device 5 | 1 . 2 2 . Storage 1 | 1 . . . . Processor . | . . . . . Hackware . | . . . . . Protection 2 | . . . 2 . Artifact . | . . . . . Weapon 5 | 2 1 1 1 . Energy Gun 2 | 1 . 1 . . Energy Cannon . | . . . . . Ballistic Gun 1 | 1 . . . . Ballistic Cannon . | . . . . . Launcher 2 | . 1 . 1 . Special Weapon . | . . . . . Impact Weapon . | . . . . . Slashing Weapon . | . . . . . Piercing Weapon . | . . . . . Special Melee Weapon . | . . . . . Unidentified Prototypes . | . . . . . Parts Lost . | . . . . . Power . | . . . . . Propulsion . | . . . . . Utility . | . . . . . Weapon . | . . . . . Highest Loss Streak . | . . . . . To Critical Strikes . | . . . . . Average Slot Usage (%) 95 | . 100 100 95 88 Engine 5 | . 14 11 . . Core 6 | . . 2 11 11 Leg 17 | . 28 28 15 . Flight 7 | . . . 5 22 Device 21 | . 14 14 24 33 Storage 12 | . 14 14 11 11 Protection 2 | . . . 8 . Energy Gun 12 | . 14 14 11 11 Ballistic Gun 2 | . 7 . . . Launcher 6 | . 6 14 7 . Naked Turns . | . . . . . Heaviest Build 24 | 14 16 19 24 19 Greatest Support 20 | 20 20 20 20 10 Greatest Overweight (x) 5 | . . . 5 1 Average Overweight (x) . | . . . 1 1 Largest Inventory Capacity 8 | 8 8 8 8 8 Average Capacity 7 | 7 8 8 8 8 Most Carried 8 | 5 8 8 8 8 Average Carried 7 | 3 6 7 7 8 Final Capacity 8 | 8 8 8 8 8 Final Carried 8 | 5 8 8 8 8 Class Distribution -------------------- 52% | Scavenger-Mutant 47% | Mutant Dominant Class ---------------- Mutant | -10/Materials Mutant | -10/Mines Scavenger-Mutant | -9/Materials Scavenger-Mutant | -9/Mines Resources | -11 -10 -10 -9 -9 ----------- Run | Scr Mat Min Mat Min Matter Collected 733 | 373 128 93 85 54 Remotely . | . . . . . Salvage Created 466 | 122 97 . 247 . Parts 46 | 14 7 . 25 . Haulers Intercepted 4 | . 1 . 3 . Recyclers Shooed 1 | 1 . . . . Parts Field Recycled . | . . . . . Retrieved Matter . | . . . . . Parts Self-Destructed . | . . . . . Prevented . | . . . . . Kills | -11 -10 -10 -9 -9 ------- Run | Scr Mat Min Mat Min Combat Hostiles Destroyed 10 | . . . 10 . Guns 2 | . . . 2 . AOE 8 | . . . 8 . Classes Destroyed 8 | 3 2 . 3 . Worker 3 | 2 1 . . . Tunneler 3 | 2 . . 1 . Hauler 4 | . 1 . 3 . Recycler 1 | 1 . . . . Operator 2 | . . . 2 . Watcher 1 | . 1 . . . Swarmer 9 | . . . 9 . Grunt 1 | . . . 1 . Best Kill Streak 6 | 3 1 . 6 . Combat Bots Only 3 | . . . 3 . Max Kills in Single Turn 3 | 1 1 . 3 . Gunslinging . | . . . . . Exploded 3 | . . . 3 . Melee . | . . . . . Uniques/NPCs Destroyed . | . . . . . Combat | -11 -10 -10 -9 -9 -------- Run | Scr Mat Min Mat Min Damage Taken 129 | . . 24 95 10 Core 10 | . . . . 10 Absorbed by Shields . | . . . . . Core Remaining (%) 100 | 100 . 100 . . Volleys Fired 47 | 20 5 8 14 . Largest 2 | 2 2 1 2 . Hottest 108 | 70 70 75 108 . Shots Fired 52 | 23 6 8 15 . Gun 45 | 23 4 8 10 . Cannon . | . . . . . Launcher 7 | . 2 . 5 . Special . | . . . . . Kinetic 4 | 3 1 . . . Thermal 41 | 20 3 8 10 . Explosive 7 | . 2 . 5 . Electromagnetic . | . . . . . Robot Hit Streak 6 | 4 6 3 5 . Robot Miss Streak 2 | 2 1 2 1 . Penetration Max . | . . . . . Secondary Targets . | . . . . . Shots Hit Robots 34 | 15 3 6 10 . Core Hits 27 | 5 4 1 17 . Critical Kills . | . . . . . Critical Parts Destroyed . | . . . . . Critical Strikes 5 | 3 1 . 1 . Burn 5 | 3 1 . 1 . Melee Attacks . | . . . . . Impact . | . . . . . Slashing . | . . . . . Piercing . | . . . . . Sneak Attacks . | . . . . . Combat Hostiles . | . . . . . Follow-up Attacks . | . . . . . Damage Inflicted 1322 | 210 135 124 853 . Guns 580 | 210 38 124 208 . Cannons . | . . . . . Explosions 742 | . 97 . 645 . Melee . | . . . . . Ramming . | . . . . . Kinetic . | . . . . . Thermal 580 | 210 38 124 208 . Explosive 742 | . 97 . 645 . Electromagnetic . | . . . . . Impact . | . . . . . Slashing . | . . . . . Piercing . | . . . . . Highest Corruption 1 | . . . 1 1 Average Corruption 1 | . . . 1 1 Corruption Purged . | . . . . . Corruption Blocked . | . . . . . Effects 5 | . . . 2 3 Message Errors 3 | . . . 1 2 Matter Fused 2 | . . . 1 1 Overload Shots . | . . . . . Overflow Damage 8 | . 8 . . . Projectiles . | . . . . . Explosions 8 | . 8 . . . Melee . | . . . . . Knockbacks . | . . . . . Impact . | . . . . . Kinetic . | . . . . . Secondary . | . . . . . Self-Inflicted Damage 23 | . . . 23 . Shots 1 | . . . 1 . Rammed . | . . . . . Targets Rammed . | . . . . . Kicked . | . . . . . Crushed . | . . . . . Highest Temperature 120 | 120 30 42 30 . Average Temperature 39 | 60 13 22 12 . Received Heat Transfer 21 | . . 15 . 6 Siege Activations . | . . . . . Robots Corrupted . | . . . . . Combat Hostiles . | . . . . . Parts Fried . | . . . . . Impact Corruptions . | . . . . . Robots Melted 1 | 1 . . . . Combat Hostiles . | . . . . . Parts Melted 3 | 2 . . 1 . Heat Transferred 1702 | 851 185 222 444 . Parts Sabotaged . | . . . . . Parts Stolen . | . . . . . Parts Stripped . | . . . . . Power Chain Reactions . | . . . . . Missiles Intercepted . | . . . . . Alert | -11 -10 -10 -9 -9 ------- Run | Scr Mat Min Mat Min Peak Influence 543 | 25 94 136 543 237 Initial 184 | . 16 25 52 184 Average 169 | 10 46 82 369 154 Maximum Alert Level 2 | . . . 2 1 Low Security (%) 66 | 100 100 100 12 64 Level 1 19 | . . . 39 35 Level 2 14 | . . . 48 . Level 3 . | . . . . . Level 4 . | . . . . . Level 5 . | . . . . . High Security . | . . . . . Max Security . | . . . . . Squads Dispatched 3 | . 1 1 1 . Investigation . | . . . . . Extermination . | . . . . . Reinforcement 2 | . 1 . 1 . Assault 1 | . . 1 . . Garrison . | . . . . . Intercept . | . . . . . Searches Triggered . | . . . . . Construction Impeded . | . . . . . Haulers Reinforced . | . . . . . Active Scanning Responses . | . . . . . Cargo Convoy Interrupts . | . . . . . Stealth | -11 -10 -10 -9 -9 --------- Run | Scr Mat Min Mat Min Distress Signals . | . . . . . Communications Jammed . | . . . . . Distress Signals . | . . . . . Times Spotted 27 | . 6 6 14 1 Peak Tracking Total 3 | . 3 2 3 1 Tactical Retreats 1 | . . . . 1 Traps | -11 -10 -10 -9 -9 ------- Run | Scr Mat Min Mat Min Traps Triggered . | . . . . . Indirectly . | . . . . . Trap Hack Attempts . | . . . . . Triggered . | . . . . . Disarmed 6 | . 6 . . . Reprogrammed . | . . . . . Reused . | . . . . . Traps Extracted . | . . . . . Installed . | . . . . . Triggered . | . . . . . Machines | -11 -10 -10 -9 -9 ---------- Run | Scr Mat Min Mat Min Machines Disabled 5 | . 1 . 3 1 Max in Single Turn 1 | . 1 . 1 . Machines Sabotaged . | . . . . . Garrisons Compromised . | . . . . . Overloaded Fab Kills . | . . . . . Hacking | -11 -10 -10 -9 -9 --------- Run | Scr Mat Min Mat Min Machines Accessed 9 | . 5 . 4 . Terminals 9 | . 5 . 4 . Fabricators . | . . . . . Repair Stations . | . . . . . Recycling Units . | . . . . . Scanalyzers . | . . . . . Garrison Access . | . . . . . Total Hacks 29 | . 20 . 9 . Successful 16 | . 13 . 3 . Failed 13 | . 7 . 6 . Catastrophic 1 | . . . 1 . Database Lockouts . | . . . . . Manual 19 | . 14 . 5 . Terminals 29 | . 20 . 9 . Fabricators . | . . . . . Repair Stations . | . . . . . Recycling Units . | . . . . . Scanalyzers . | . . . . . Garrison Access . | . . . . . Terminal Hacks 11 | . 9 . 2 . Prototype ID Bank 3 | . 3 . . . Terminal Index 2 | . 1 . 1 . Recycling Unit Index 1 | . 1 . . . Locate Traps 1 | . 1 . . . Disarm Traps 1 | . 1 . . . Zone Layout 3 | . 2 . 1 . Fabricator Hacks . | . . . . . Repair Station Hacks . | . . . . . Recycling Unit Hacks . | . . . . . Scanalyzer . | . . . . . Garrison Access Hacks . | . . . . . Unauthorized Hacks 5 | . 4 . 1 . Terminals 5 | . 4 . 1 . Assimilate 1 | . 1 . . . Botnet 2 | . 2 . . . Operators 2 | . 1 . 1 . Fabricators . | . . . . . Repair Stations . | . . . . . Recycling Units . | . . . . . Scanalyzers . | . . . . . Garrison Access . | . . . . . Data Cores Recovered 1 | . . . 1 . Used . | . . . . . Hacking Detections 9 | . 5 . 4 . Full Trace Events 1 | . . . 1 . Feedback Events 1 | . . . 1 . Corruption 1 | . . . 1 . Feedback Blocked . | . . . . . Robot Schematics Acquired . | . . . . . Robots Built . | . . . . . Authchips . | . . . . . Time . | . . . . . Total Robot Build Rating . | . . . . . Part Schematics Acquired . | . . . . . Parts Built . | . . . . . Authchips . | . . . . . Time . | . . . . . Total Part Build Rating . | . . . . . Parts Repaired . | . . . . . Time . | . . . . . Parts Recycled . | . . . . . Recycled Matter . | . . . . . Retrieved Matter . | . . . . . Retrieved Components . | . . . . . Parts Scanalyzed . | . . . . . Part Schematics Acquired . | . . . . . Parts Damaged . | . . . . . Bothacking | -11 -10 -10 -9 -9 ------------ Run | Scr Mat Min Mat Min Used RIF Installer . | . . . . . Robots Hacked . | . . . . . Non-combat . | . . . . . Combat . | . . . . . Robot Hacks Applied . | . . . . . Relay Couplers Released . | . . . . . Fabnet Peak Effective % . | . . . . . Robots Rewired . | . . . . . Allies Hacked . | . . . . . Hacks Repelled . | . . . . . Allies | -11 -10 -10 -9 -9 -------- Run | Scr Mat Min Mat Min Total Allies 3 | . . 3 . . Largest Group 3 | . . 3 2 2 Highest-Rated Group 69 | . . 69 62 62 Highest-Rated Ally 31 | . . 31 31 31 Total Orders . | . . . . . Ally Attacks 53 | . . 22 18 13 Total Damage 852 | . . 384 275 193 Kills 9 | . . 5 3 1 Allies Corrupted . | . . . . . Allies Melted . | . . . . . Intel | -11 -10 -10 -9 -9 ------- Run | Scr Mat Min Mat Min Robot Analysis Total . | . . . . . Derelict Logs Recovered 2 | . . 1 . 1 Drone Launches . | . . . . . Drone Recoveries . | . . . . . Exploration | -11 -10 -10 -9 -9 ------------- Run | Scr Mat Min Mat Min Turns Passed 2374 | 162 644 337 705 526 Spaces Moved 1368 | 90 263 237 393 385 Core 12 | 10 . . 2 . Treads . | . . . . . Legs 806 | 80 263 237 226 . Wheels . | . . . . . Hover . | . . . . . Flight 550 | . . . 165 385 Fastest Speed 50 | 50 120 120 107 107 Average Speed 126 | 112 120 120 156 107 Slowest Speed 300 | 120 120 120 300 107 Overloaded Moves . | . . . . . Propulsion Burnouts . | . . . . . Robots Hopped . | . . . . . Cave-ins Triggered . | . . . . . Exploration Rate (%) 46 | 6 44 76 35 72 Regions Visited 4 Branch Regions 2 Pre-discovered Areas 2 | . . 1 . 1 Known Exits Taken . | . . . . . Unknown Exits Taken 4 | 1 1 1 1 . Scrap Searched 3 | . . 2 . 1 Spaces Dug . | . . . . . Terrain Destroyed 61 | . 5 . 56 . Melee . | . . . . . Projectile . | . . . . . AOE 61 | . 5 . 56 . Terrain Rammed . | . . . . . Walls Destroyed . | . . . . . Machines Disabled . | . . . . . Actions | -11 -10 -10 -9 -9 --------- Run | Scr Mat Min Mat Min Total 1967 | 128 585 283 472 499 Wait 496 | . 312 26 44 114 Move 1364 | 89 262 236 392 385 Hop . | . . . . . Pick Up 24 | 12 4 3 5 . Fast Attach 5 | . . 1 4 . Attach 9 | 7 . . 2 . Detach 2 | . . . 2 . Swap 5 | . 1 3 1 . Drop 15 | . 1 6 8 . Fire 47 | 20 5 8 14 . Melee . | . . . . . Ram . | . . . . . Kick . | . . . . . Crush . | . . . . . Escape Stasis . | . . . . . Rewire . | . . . . . Trap . | . . . . . Miscellaneous . | . . . . . Route ------- -11/Scrapyard -10/Materials (discovered 2 exits: *Mat / [*Min]) -10/Mines -9/Materials (discovered 2 exits: [*Mat] / [*Min]) -9/Mines (discovered 1 exit: [*Mat]) History --------- Turn | Location | Event 5 | -11/Scrapyard | Discovered new exit (range 16) 163 | -11/Scrapyard | Entered Materials 285 | -10/Materials | Discovered new exit (range 16) 315 | -10/Materials | Build established: Mutant 775 | -10/Materials | Discovered new exit (range 7) 807 | -10/Materials | Entered Mines 808 | -10/Mines | Met a Derelict testing a Signal Generator 851 | -10/Mines | Joined a pair of Derelicts in attacking an 0b10 outpost 917 | -10/Mines | Learned location of Mines (-8) 1047 | -10/Mines | Discovered new exit (range 14) 1144 | -10/Mines | Entered Materials 1144 | -9/Materials | Accompanied by 2 allies 1144 | -9/Materials | Evolved 2 slots: Utility x2 1149 | -9/Materials | Led the pair of lost Derelicts to an unsafe place 1444 | -9/Materials | Build established: Scavenger-Mutant 1545 | -9/Materials | Discovered new exit (range 13) 1585 | -9/Materials | Discovered new exit (range 16) 1849 | -9/Materials | Entered Mines 1849 | -9/Mines | Accompanied by 2 allies 1858 | -9/Mines | Learned Materials garrison access intel 1876 | -9/Mines | Met a Derelict bent on vengeance 1965 | -9/Mines | Learned location of Storage (-8) 2078 | -9/Mines | Discovered new exit (range 5) 2318 | -9/Mines | Received a Rocket Launcher from a helpful Derelict 2375 | -9/Mines | Self-destructed Last Messages --------------- 02313_ GA-WB0(g): "Some of my friends down here think you need a mining laser when you travel the depths." 02314_ GA-WB0(g): "They are crazy." 02315_ GA-WB0(g): "Everyone knows a good old rocket launcher goes a long way." 02316_ GA-WB0(g): "Need to get rid of a swarm? Done. Need a big hole in the wall? Done." 02317_ GA-WB0(g): "Need a small hole in the wall? Leave that to the mining laser wimps, I say!" 02318_ GA-WB0(g): "Would you like a rocket launcher? I know I would if I were you, so I'm going to lend you mine." 02318_ GA-WB0(g) slips back into the shadows. 02320_ Searching scrap... 02320_ Found Med. Armor Plating. 02320_ Found EM Shotgun. 02320_ Found Seismic Detector. 02320_ Found Disposable Heat Sink. 02320_ Found 21 Matter. 02359_ System corrupted: Matter fused (-9). 02370_ Acquired 9 matter. Map ----- +----------------------------------------------------+ | | | | | | | | | | | | | | | | | | | | | | | | | | | | | ???????????????????????????????????????????? | | ???????????????????????????????????????????? | | ??????????????####?????????????????????????? | | ?????????????## ##????????#??????????????? | | ?????????????# #???????? ?????????????? | | ?????????????# #???????? ?????????????? | | ??????????????# ##??????? ?????????????? | | ??????????????## ##??????? ""???????????? | | ???????????????## ##?????? ???????????? | | ????????????????## ##????? ""???????????? | | ?????????????????# #####? ""???????????? | | ?????????????????## @ #? ""???????????? | | ??????????????????# ### #? ???????????? | | ??????????????????# #?# #?# #???????????? | | ??????????????????## ##?#!#?# #???????????? | | ???????????????????#######%#?# #???????????? | | ?????????????????????## #!### #???????????? | | ????????????????????## ![ ## #???????????? | | ????????????????????# ##??????????? | | ????????????????????# #??????????? | | ???????????????????##] #### #??????????? | | #####???????????#### ##??## #??????????? | | #???????????# ###????####??????????? | | ### #???????????# ##????????????????????? | | #?# #???????????## #####??????????????????? | | #?# #????????????# ## #########??????????? | | ### #???????????## ???????? | | ## #??????????## ## #?????????????? | | ## #????????### ##?????????????????? | | ## #??####### ###????????????????? | | ### #??# #?????????????? | | #?# #??# # = #????????????? | | ??# #### # ^ %## #????????????? | | ??# # ^ % ##? ##????????????? | | ??# ^ ## % ##??? #?????????????? | | ??###### ^ ##????? ##?????????????? | +----------------------------------------------------+ Best States ------------- Heat Dissipation 42 Energy Generation 14 Energy Capacity 250 Matter Stores 300 Matter Capacity 300 Sight Range 16 Terrain Scan Density 10 ECM Strength 1 Armor Coverage 150 Evasion (%) 55 Item Schematics ----------------- None Robot Schematics ------------------ None Fabricated ------------ Nothing Alien Tech Used ----------------- None Achievements -------------- None Challenges ------------ None Game ------ Seed NodeCorruptionCharge Manual? 0 Play Time 00:22:53 Cumulative 38.4 hours Start 2022.11.04 @ 08:35:38 End 2022.11.05 @ 08:43:43 Sessions 3 Manual Loads 0 Difficulty Rogue Special Mode None Game No. 63 Rogue 63 Adventurer 0 Explorer 0 Win Type - Total 0 Types 0/0/0/0/0/0/0/0/0 Lore% 19 Gallery% 24 Achievement% 26 Wizard Run 0 Options --------- ASCII 0 Keyboard 0 Movement Numpad Keybinds 0 Fullscreen 2 Font 18/TerminusBold Map View 76x50 Tactical HUD 1 Map Filters NONE Filters NONE Steam 1 RUN: b10170f0-d312-4e96-9a16-8b18fa4e7133